bitfinex-derivatives/quotes_BTCF0:USTF0_20250108
["timestamp","ask_amount","ask_price","bid_price","bid_amount"]
[1736325586288,0.05207,96049.0,96039.0,0.3608]
[1736325586487,0.05207,96049.0,96045.0,0.002]
[1736325587491,0.412866,96055.0,96045.0,0.002]
[1736325587883,0.11203299,96048.0,96045.0,0.002]
[1736325588684,0.11203299,96047.0,96045.0,0.002]
[1736325588889,0.11203299,96047.0,96045.0,0.001]
[1736325589796,0.11203299,96047.0,96045.0,0.002]
[1736325590195,0.11203299,96046.0,96045.0,0.002]
[1736325595604,0.11203299,96052.0,96045.0,0.002]
[1736325595792,0.05207,96049.0,96045.0,0.002]
[1736325595998,0.05207,96048.0,96045.0,0.002]
[1736325597298,0.05207,96048.0,96039.0,0.37367729]
[1736325597503,0.05207,96048.0,96045.0,0.002]
[1736325597695,0.11203299,96051.0,96045.0,0.002]
[1736325597894,0.11203299,96054.0,96045.0,0.002]
[1736325598703,0.11203299,96053.0,96045.0,0.002]
[1736325599200,0.052068,96052.0,96039.0,0.37367729]
[1736325599504,0.16410099,96052.0,96045.0,0.001]
[1736325600101,0.11203299,96051.0,96039.0,0.37367729]
[1736325600403,0.11203299,96051.0,96045.0,0.001]
[1736325601200,0.11203299,96050.0,96048.0,0.052069]
[1736325602095,0.3608,96055.0,96048.0,0.052069]
[1736325603292,0.11203299,96054.0,96048.0,0.052069]
[1736325603494,0.11203299,96054.0,96048.0,0.055069]
[1736325604103,0.11203299,96054.0,96053.0,0.3608]
[1736325604601,0.052063,96061.0,96053.0,0.3608]
[1736325604799,0.15972471,96063.0,96053.0,0.3608]
[1736325605111,0.052064,96060.0,96053.0,0.3608]
[1736325606914,0.052064,96060.0,96053.0,0.3618]
[1736325607616,0.052064,96060.0,96053.0,0.3608]
[1736325607909,0.052065,96058.0,96053.0,0.3628]
[1736325609308,0.052065,96058.0,96053.0,0.3608]
[1736325609617,0.052065,96058.0,96053.0,0.3618]
[1736325610116,0.052065,96058.0,96053.0,0.37434031]
[1736325610716,0.052065,96058.0,96053.0,0.37534031]
[1736325612012,0.052065,96057.0,96053.0,0.37534031]
[1736325612419,0.052065,96057.0,96053.0,0.37334031]
[1736325612719,0.052065,96057.0,96053.0,0.37534031]
[1736325613515,0.052065,96057.0,96053.0,0.37434031]
[1736325613718,0.052066,96055.0,96053.0,0.01354031]
[1736325614117,0.052066,96055.0,96053.0,0.01254031]
[1736325614317,0.052066,96055.0,96053.0,0.001]
[1736325615914,0.11202212,96054.0,96053.0,0.001]
[1736325616114,0.16408912,96054.0,96053.0,0.001]
[1736325616923,0.052068,96051.0,96050.0,0.0125136]
[1736325617226,0.052068,96051.0,96039.0,0.3608]
[1736325617425,0.0683405,96050.0,96039.0,0.3608]
[1736325617624,0.0683405,96050.0,96039.0,0.37349504]
[1736325618319,0.05207,96048.0,96040.0,0.0683405]
[1736325618626,0.05207,96048.0,96039.0,0.37349504]
[1736325620620,0.05207,96048.0,96039.0,0.37549504]
[1736325621522,0.0683405,96050.0,96039.0,0.37549504]
[1736325621719,0.052071,96047.0,96039.0,0.37549504]
[1736325623922,0.052071,96046.0,96039.0,0.37549504]
[1736325624123,0.110171,96046.0,96039.0,0.37549504]
[1736325626032,0.11202212,96045.0,96039.0,0.37549504]
[1736325626823,0.11202212,96044.0,96039.0,0.37549504]
[1736325627220,0.11202212,96044.0,96039.0,0.37349504]
[1736325627417,0.11202212,96044.0,96039.0,0.37549504]
[1736325627636,0.11202212,96043.0,96039.0,0.37549504]
[1736325628422,0.11202212,96042.0,96039.0,0.37549504]
[1736325628822,0.11202212,96042.0,96039.0,0.42756904]
[1736325629022,0.11202212,96042.0,96039.0,0.42556904]
[1736325629226,0.11202212,96042.0,96039.0,0.42756904]
[1736325629433,0.0683405,96050.0,96039.0,0.42756904]
[1736325629434,0.11202212,96045.0,96039.0,0.42756904]
[1736325629923,0.11202212,96045.0,96039.0,0.37549504]
[1736325630123,0.07213214,96044.0,96043.0,0.052072]
[1736325630918,0.07213214,96044.0,96043.0,0.412872]
[1736325631331,0.0683405,96060.0,96054.0,0.052066]
[1736325631529,0.057,96069.0,96058.0,0.3608]
[1736325631725,0.1135,96078.0,96069.0,0.052058]
[1736325632132,0.057,96084.0,96068.0,0.4291405]
[1736325632326,0.057,96084.0,96077.0,0.3608]
[1736325633438,0.06,96084.0,96077.0,0.3608]
[1736325636331,0.06,96084.0,96077.0,0.37283906]
[1736325641040,0.052051,96083.0,96077.0,0.37283906]
[1736325641238,0.052052,96081.0,96077.0,0.37283906]
[1736325642136,0.11199885,96080.0,96077.0,0.37283906]
[1736325642930,0.052052,96081.0,96077.0,0.37283906]
[1736325643530,0.055052,96081.0,96077.0,0.37283906]
[1736325645241,0.003,96081.0,96077.0,0.37283906]
[1736325646543,0.11199885,96080.0,96077.0,0.37283906]
[1736325647438,0.003,96081.0,96077.0,0.37283906]
[1736325647439,0.11199885,96079.0,96077.0,0.37283906]
[1736325648048,0.01064196,96079.0,96077.0,0.42489306]
[1736325648241,1.09810154,96100.0,96079.0,0.052053]
[1736325648550,1.09810154,96100.0,96099.0,0.3608]
[1736325648756,1.09810154,96100.0,96099.0,0.412842]
[1736325649637,0.6,96100.0,96099.0,0.412842]
[1736325649844,0.6,96100.0,96099.0,0.3608]
[1736325650242,0.604,96100.0,96099.0,0.3608]
[1736325651254,0.6599,96100.0,96099.0,0.3608]
[1736325652854,0.6599,96100.0,96095.0,0.3608]
[1736325653240,0.6599,96100.0,96095.0,0.37307549]
[1736325654142,0.604,96100.0,96095.0,0.37307549]
[1736325654545,0.604,96100.0,96099.0,0.052042]
[1736325655852,0.603,96100.0,96099.0,0.052042]
[1736325656462,0.58769349,96100.0,96099.0,0.052042]
[1736325656753,0.58869349,96100.0,96099.0,0.052042]
[1736325657452,0.45807449,96100.0,96099.0,0.052042]
[1736325659750,0.45407449,96100.0,96099.0,0.052042]
[1736325660058,0.45707449,96100.0,96099.0,0.052042]
[1736325660559,0.42884369,96100.0,96099.0,0.052042]
[1736325660753,0.42784369,96100.0,96099.0,0.052042]
[1736325660951,0.41681369,96100.0,96099.0,0.052042]
[1736325661153,0.20825066,96100.0,96099.0,0.052042]
[1736325661462,0.13361182,96100.0,96099.0,0.052042]
[1736325662255,0.1,96120.0,96115.0,0.052033]
[1736325662457,0.1,96120.0,96119.0,0.3608]
[1736325663353,0.103,96120.0,96119.0,0.3608]
[1736325664167,0.103,96120.0,96119.0,0.412831]
[1736325664963,0.103,96120.0,96119.0,0.42439957]
[1736325669561,0.103,96120.0,96119.0,0.33619957]
[1736325673966,0.103,96120.0,96101.0,0.3608]
[1736325674170,0.3608,96118.0,96101.0,0.3608]
[1736325674371,0.054,96117.0,96104.0,0.052039]
[1736325674859,0.054,96117.0,96107.0,0.10409104]
[1736325675953,0.054,96117.0,96105.0,0.052038]
[1736325676160,0.412837,96109.0,96096.0,0.01191414]
[1736325676361,0.3608,96101.0,96091.0,0.3608]
[1736325677377,0.1101,96100.0,96091.0,0.3608]
[1736325677571,0.3608,96093.0,96081.0,0.02750116]
[1736325677864,0.0571,96092.0,96081.0,0.02750116]
[1736325678070,0.0571,96092.0,96082.0,0.3608]
[1736325679872,0.0571,96092.0,96082.0,0.3618]
[1736325682277,0.0571,96092.0,96091.0,0.3608]
[1736325688074,0.0571,96092.0,96082.0,0.3608]
[1736325689180,0.16119104,96092.0,96082.0,0.3618]
[1736325689875,0.052051,96084.0,96082.0,0.001]
[1736325690068,0.052051,96084.0,96060.0,0.46768]
[1736325690069,0.052055,96076.0,96060.0,0.518583]
[1736325690270,0.1148,96075.0,96060.0,0.518583]
[1736325690675,0.10409104,96070.0,96060.0,0.01454072]
[1736325690871,0.05206,96067.0,96049.0,0.3608]
[1736325691067,0.052062,96064.0,96049.0,0.3608]
[1736325691582,0.053,96063.0,96049.0,0.37526724]
[1736325693083,0.053,96063.0,96049.0,0.43133624]
[1736325693782,0.053,96063.0,96049.0,0.43033624]
[1736325694176,0.053,96063.0,96051.0,0.052068]
[1736325694386,0.3608,96069.0,96050.0,0.10409104]
[1736325694688,0.3608,96069.0,96059.0,0.052064]
[1736325696879,0.3608,96069.0,96059.0,0.054064]
[1736325697880,0.3608,96069.0,96059.0,0.002]
[1736325698085,0.3608,96069.0,96060.0,0.0586]
[1736325698287,0.3608,96069.0,96060.0,0.1169]
[1736325698485,0.1148,96075.0,96060.0,0.1169]
[1736325698797,0.1148,96075.0,96063.0,0.052061]
[1736325699194,0.0573,96076.0,96063.0,0.052061]
[1736325699391,0.0573,96076.0,96060.0,0.1169]
[1736325699596,0.0573,96076.0,96064.0,0.052061]
[1736325700497,0.0573,96076.0,96065.0,0.05206]
[1736325700697,0.0573,96076.0,96070.0,0.3608]
[1736325700895,0.0573,96076.0,96070.0,0.412858]
[1736325701091,0.0573,96076.0,96070.0,0.3608]
[1736325701289,0.0573,96076.0,96065.0,0.05206]
[1736325701489,0.0573,96076.0,96063.0,0.001]
[1736325701490,0.0573,96076.0,96067.0,0.052059]
[1736325701984,0.0573,96076.0,96069.0,0.052058]
[1736325704099,0.0573,96076.0,96071.0,0.3608]
[1736325704489,0.0575,96086.0,96071.0,0.3608]
[1736325704692,0.0575,96086.0,96075.0,0.052055]
[1736325705189,0.3608,96079.0,96075.0,0.052055]
[1736325706110,0.3608,96079.0,96071.0,0.3608]
[1736325706601,0.3608,96079.0,96075.0,0.001]
[1736325707501,0.3608,96079.0,96071.0,0.3765372]
[1736325708492,0.3608,96079.0,96071.0,0.0157372]
[1736325708893,0.10409104,96081.0,96071.0,0.0157372]
[1736325709098,0.10409104,96081.0,96075.0,0.001]
[1736325709804,0.10409104,96081.0,96071.0,0.0147372]
[1736325710096,0.10409104,96081.0,96071.0,0.001]
[1736325710705,0.10409104,96081.0,96075.0,0.001]
[1736325711395,0.3608,96078.0,96075.0,0.001]
[1736325711893,0.052052,96082.0,96075.0,0.001]
[1736325712203,0.052052,96082.0,96070.0,0.06703918]
[1736325712404,0.052052,96082.0,96071.0,0.001]
[1736325712606,0.052052,96082.0,96071.0,0.3618]
[1736325712797,0.052052,96082.0,96071.0,0.413857]
[1736325713101,0.586143,96071.0,96070.0,0.01498118]
[1736325713303,0.586143,96071.0,96060.0,0.22099104]
[1736325713806,0.586143,96071.0,96061.0,0.052063]
[1736325714005,0.586143,96071.0,96066.0,0.05206]
[1736325716209,0.586143,96071.0,96066.0,0.05406]
[1736325717097,0.586143,96071.0,96066.0,0.05206]
[1736325717408,0.586143,96071.0,96066.0,0.05406]
[1736325718110,0.586143,96071.0,96066.0,0.002]
[1736325718306,0.586143,96071.0,96068.0,0.052059]
[1736325719601,0.586143,96071.0,96068.0,0.054059]
[1736325723107,0.586143,96071.0,96070.0,0.052058]
[1736325725715,0.586143,96071.0,96070.0,0.054058]
[1736325726311,0.586143,96071.0,96070.0,0.07303509]
[1736325727115,0.586143,96071.0,96070.0,0.07003509]
[1736325727418,0.586143,96071.0,96070.0,0.07303509]
[1736325731018,0.33739935,96071.0,96070.0,0.07303509]
[1736325734014,0.33739935,96071.0,96054.0,0.3608]
[1736325734219,0.3608,96062.0,96054.0,0.3608]
[1736325734916,0.0545,96070.0,96054.0,0.37929261]
[1736325735223,0.0545,96070.0,96062.0,0.052062]
[1736325736114,0.0545,96070.0,96055.0,0.052066]
[1736325737221,0.0545,96070.0,96062.0,0.002]
[1736325737628,0.3608,96063.0,96062.0,0.002]
[1736325738324,0.0545,96070.0,96062.0,0.002]
[1736325738826,0.0545,96070.0,96060.0,0.10405784]
[1736325739123,0.0545,96070.0,96062.0,0.052062]
[1736325739827,0.07902523,96071.0,96070.0,0.052058]
[1736325740124,0.03836796,96071.0,96070.0,0.052058]
[1736325740917,0.00064796,96071.0,96070.0,0.052058]
[1736325741925,0.3608,96093.0,96091.0,0.052046]
[1736325743122,0.3618,96093.0,96091.0,0.052046]
[1736325743918,0.001,96093.0,96091.0,0.052046]
[1736325746726,0.001,96093.0,96091.0,0.07001041]
[1736325751232,0.001,96093.0,96091.0,0.43081041]
[1736325752233,0.0567,96102.0,96101.0,0.052041]
[1736325752625,0.054,96116.0,96101.0,0.052041]
[1736325752821,0.1072,96116.0,96101.0,0.052041]
[1736325753533,0.003,96102.0,96101.0,0.052041]
[1736325754839,0.003,96102.0,96101.0,0.07491597]
[1736325755733,0.3638,96105.0,96104.0,0.052039]
[1736325756630,0.1072,96116.0,96104.0,0.052039]
[1736325756830,0.1072,96116.0,96105.0,0.052039]
[1736325757632,0.1072,96116.0,96106.0,0.052038]
[1736325758937,0.1072,96116.0,96100.0,0.10405784]
[1736325758938,0.1072,96116.0,96107.0,0.052037]
[1736325759132,0.3608,96110.0,96107.0,0.052037]
[1736325760535,0.3648,96110.0,96107.0,0.052037]
[1736325765144,0.3648,96110.0,96107.0,0.0753631]
[1736325765648,0.3648,96110.0,96109.0,0.052037]
[1736325780944,0.33639216,96110.0,96109.0,0.052037]
[1736325781142,0.004,96110.0,96109.0,0.052037]
[1736325781343,0.004,96110.0,96109.0,0.412837]
[1736325785354,1.00064,96115.0,96114.0,0.052034]
[1736325785550,1.0,96115.0,96114.0,0.052034]
[1736325786654,1.004,96115.0,96114.0,0.052034]
[1736325788644,0.94663,96115.0,96114.0,0.052034]
[1736325789445,0.9366201,96115.0,96114.0,0.08094977]
[1736325791158,0.9277001,96115.0,96114.0,0.08094977]
[1736325795446,0.8988701,96115.0,96114.0,0.08094977]
[1736325796553,0.8341421,96115.0,96114.0,0.08094977]
[1736325796758,0.82323875,96115.0,96114.0,0.08094977]
[1736325797147,0.79450875,96115.0,96114.0,0.08094977]
[1736325797349,0.76413919,96115.0,96114.0,0.08094977]
[1736325797549,0.72577614,96115.0,96114.0,0.08094977]
[1736325797749,0.71877614,96115.0,96114.0,0.08094977]
[1736325798249,0.20280913,96115.0,96114.0,0.08094977]
[1736325798961,0.20280913,96115.0,96114.0,0.08303063]
[1736325800363,0.20280913,96115.0,96114.0,0.44743063]
[1736325801454,0.18280913,96115.0,96114.0,0.44743063]
[1736325801647,0.13560157,96115.0,96114.0,0.44743063]
[1736325801848,0.056,96139.0,96116.0,0.3644]
[1736325802066,0.1,96140.0,96133.0,0.3608]
[1736325802253,0.1,96140.0,96138.0,0.052021]
[1736325802460,0.1,96140.0,96139.0,0.46632]
[1736325805559,0.1,96140.0,96139.0,0.46732]
[1736325807460,0.1,96140.0,96138.0,0.02917709]
[1736325807657,0.1,96140.0,96124.0,0.46628]
[1736325807658,0.0595,96139.0,96124.0,0.46628]
[1736325807857,0.06825086,96134.0,96124.0,0.46628]
[1736325808369,0.0595,96139.0,96124.0,0.46628]
[1736325809064,0.0595,96139.0,96138.0,0.001]
[1736325809265,0.0595,96139.0,96124.0,0.46628]
[1736325809467,0.0595,96139.0,96124.0,0.49519146]
[1736325810665,0.0564,96138.0,96124.0,0.49519146]
[1736325812570,0.0575,96137.0,96124.0,0.49519146]
[1736325813773,0.0575,96137.0,96124.0,0.54722046]
[1736325813976,0.0575,96137.0,96125.0,0.052028]
[1736325816467,0.0575,96137.0,96124.0,0.49627146]
[1736325816666,0.0575,96137.0,96126.0,0.052027]
[1736325822072,0.0595,96139.0,96127.0,0.10395718]
[1736325822380,0.0553,96136.0,96135.0,0.052023]
[1736325822580,0.0595,96139.0,96137.0,0.052021]
[1736325825881,0.1,96140.0,96138.0,0.052021]
[1736325833305,0.1,96140.0,96138.0,0.111021]
[1736325836007,0.1,96140.0,96138.0,0.052021]
[1736325852915,0.1,96140.0,96137.0,0.02476645]
[1736325853218,0.1,96140.0,96130.0,0.46736]
[1736325853419,0.1,96140.0,96130.0,0.46628]
[1736325853420,0.1165,96139.0,96130.0,0.46628]
[1736325854123,0.1165,96139.0,96130.0,0.49806426]
[1736325858323,0.1165,96139.0,96130.0,0.55008926]
[1736325858821,0.0585,96139.0,96130.0,0.49806426]
[1736325859021,0.1,96140.0,96139.0,0.052021]
[1736325861019,0.1,96140.0,96133.0,0.052023]
[1736325861420,0.1,96140.0,96134.0,0.052023]
[1736325861722,0.1,96140.0,96138.0,0.052021]
[1736325864730,0.1,96140.0,96139.0,0.1216]
[1736325865222,0.1,96140.0,96139.0,0.4824]
[1736325869823,0.09149959,96140.0,96139.0,0.4824]
[1736325870423,0.5176,96139.0,96138.0,0.052021]
[1736325871218,0.4809,96139.0,96138.0,0.052021]
[1736325871423,0.40689,96139.0,96138.0,0.052021]
[1736325871623,0.08065841,96139.0,96138.0,0.052021]
[1736325871830,0.3518,96148.0,96147.0,0.052016]
[1736325872533,0.1577,96160.0,96147.0,0.052016]
[1736325872734,0.1577,96160.0,96159.0,0.05201]
[1736325873334,0.1,96160.0,96159.0,0.05201]
[1736325877633,0.1,96160.0,96159.0,0.07846473]
[1736325882742,0.1,96160.0,96150.0,0.00108]
[1736325882743,0.4608,96160.0,96150.0,0.00108]
[1736325882943,0.4608,96160.0,96141.0,0.052019]
[1736325882944,0.3608,96151.0,96141.0,0.052019]
[1736325883139,0.3608,96142.0,96141.0,0.052019]
[1736325886046,0.3608,96142.0,96141.0,0.053019]
[1736325896258,0.3608,96142.0,96140.0,0.02728464]
[1736325896446,0.3608,96142.0,96135.0,0.46616]
[1736325897053,0.3608,96142.0,96138.0,0.052021]
[1736325898258,0.3608,96142.0,96140.0,0.05202]
[1736325900750,0.3608,96142.0,96140.0,0.05302]
[1736325901256,0.45267581,96135.0,96131.0,0.0575]
[1736325901664,0.45267581,96135.0,96131.0,0.08461835]
[1736325902456,0.45267581,96135.0,96134.0,0.052023]
[1736325902657,0.45267581,96135.0,96131.0,0.08761835]
[1736325902861,0.45267581,96135.0,96131.0,0.03011835]
[1736325904055,0.45267581,96135.0,96131.0,0.02711835]
[1736325904357,0.45267581,96135.0,96134.0,0.002]
[1736325904947,0.45267581,96135.0,96128.0,0.052026]
[1736325905152,0.45267581,96135.0,96131.0,0.002]
[1736325905754,0.45267581,96135.0,96128.0,0.052026]
[1736325906057,0.45267581,96135.0,96134.0,0.002]
[1736325906848,0.51627581,96135.0,96134.0,0.002]
[1736325907148,0.51627581,96135.0,96124.0,0.4662]
[1736325907357,0.3608,96125.0,96124.0,0.4662]
[1736325908352,0.3608,96125.0,96124.0,0.4702]
[1736325908753,0.3608,96125.0,96124.0,0.50440865]
[1736325910657,0.56512778,96135.0,96133.0,0.052024]
[1736325910960,0.56460777,96135.0,96133.0,0.052024]
[1736325911656,0.45267581,96135.0,96133.0,0.052024]
[1736325911857,0.45267581,96135.0,96133.0,0.054024]
[1736325913057,0.45267581,96135.0,96133.0,0.002]
[1736325913859,0.45267581,96135.0,96134.0,0.052023]
[1736325914449,0.45267581,96135.0,96134.0,0.115723]
[1736325914656,0.39574955,96135.0,96134.0,0.115723]
[1736325914856,0.36050338,96135.0,96134.0,0.174623]
[1736325915051,0.36050338,96135.0,96134.0,0.235323]
[1736325915257,0.36050338,96135.0,96134.0,0.237323]
[1736325915458,0.33249338,96135.0,96134.0,0.237323]
[1736325915763,0.27394546,96135.0,96134.0,0.27179035]
[1736325915962,0.27394546,96135.0,96134.0,0.26979035]
[1736325916165,0.27394546,96135.0,96134.0,0.27179035]
[1736325916757,0.24576546,96135.0,96134.0,0.27179035]
[1736325916955,0.10821041,96135.0,96134.0,0.27179035]
[1736325917664,0.10821041,96135.0,96134.0,0.26979035]
[1736325917851,0.10821041,96135.0,96134.0,0.27179035]
[1736325918056,0.05114041,96135.0,96134.0,0.27179035]
[1736325922462,0.4204,96159.0,96148.0,0.052015]
[1736325922763,0.4204,96159.0,96149.0,0.10396897]
[1736325923857,0.4204,96159.0,96149.0,0.15598397]
[1736325925468,0.4214,96159.0,96149.0,0.15598397]
[1736325925767,0.4214,96159.0,96149.0,0.052015]
[1736325926562,0.4214,96159.0,96150.0,0.052014]
[1736325927563,0.4214,96159.0,96151.0,0.052014]
[1736325928572,0.4214,96159.0,96149.0,0.03461843]
[1736325928762,0.3608,96150.0,96144.0,0.052017]
[1736325929073,0.0594,96149.0,96144.0,0.052017]
[1736325929865,0.0594,96149.0,96142.0,0.50141645]
[1736325930166,0.0592,96148.0,96142.0,0.50141645]
[1736325930368,0.0592,96148.0,96142.0,0.50069645]
[1736325933479,0.0592,96148.0,96142.0,0.55371445]
[1736325935262,0.0592,96148.0,96142.0,0.50169645]
[1736325936763,0.0592,96148.0,96142.0,0.03549645]
[1736325937677,0.0594,96149.0,96142.0,0.03549645]
[1736325938371,0.1211,96149.0,96142.0,0.03549645]
[1736325938763,0.1211,96149.0,96142.0,0.03449645]
[1736325938969,0.1211,96149.0,96142.0,0.001]
[1736325939376,0.3608,96144.0,96142.0,0.001]
[1736325939578,0.0611,96143.0,96127.0,0.052027]
[1736325939777,0.3608,96131.0,96127.0,0.052027]
[1736325941676,0.3608,96131.0,96120.0,0.10393558]
[1736325941886,0.0624,96130.0,96128.0,0.04331965]
[1736325942067,0.3608,96129.0,96128.0,0.00156015]
[1736325942271,0.3608,96129.0,96128.0,0.00456015]
[1736325942780,0.4203,96129.0,96128.0,0.00456015]
[1736325943167,0.4203,96129.0,96115.0,0.052033]
[1736325943373,0.3608,96118.0,96116.0,0.27042674]
[1736325943579,0.3608,96117.0,96116.0,0.27042674]
[1736325944784,0.4203,96129.0,96116.0,0.27042674]
[1736325944984,0.4203,96129.0,96128.0,0.002]
[1736325945282,0.4203,96129.0,96116.0,0.27042674]
[1736325946086,0.4203,96129.0,96116.0,0.27242674]
[1736325947581,0.3608,96120.0,96116.0,0.27242674]
[1736325948382,0.0602,96119.0,96116.0,0.27142674]
[1736325949981,0.0602,96119.0,96116.0,0.27042674]
[1736325950173,0.0602,96119.0,96116.0,0.27142674]
[1736325952087,0.0602,96119.0,96116.0,0.04316197]
[1736325952277,0.0602,96119.0,96098.0,0.49373459]
[1736325952479,0.3608,96100.0,96098.0,0.49373459]
[1736325953282,0.3608,96100.0,96098.0,0.54577659]
[1736325953477,0.3608,96100.0,96098.0,0.58734879]
[1736325954194,0.3608,96100.0,96098.0,0.59034879]
[1736325954377,0.1218,96119.0,96104.0,0.052039]
[1736325954574,0.1218,96119.0,96105.0,0.052039]
[1736325955182,0.1218,96119.0,96099.0,0.48876]
[1736325955374,0.0616,96119.0,96109.0,0.10393558]
[1736325955574,0.36136001,96120.0,96118.0,0.052031]
[1736325955789,0.3608,96137.0,96119.0,0.0638]
[1736325955983,0.3608,96137.0,96126.0,0.052027]
[1736325956177,0.3608,96137.0,96120.0,0.10393558]
[1736325956380,0.3608,96137.0,96127.0,0.10393558]
[1736325956580,0.1267,96148.0,96136.0,0.3608]
[1736325956781,0.1119558,96155.0,96139.0,0.05202]
[1736325956985,0.1119558,96155.0,96153.0,0.052013]
[1736325957779,0.1,96160.0,96155.0,0.052012]
[1736325958186,0.1,96160.0,96156.0,0.052011]
[1736325958376,0.1,96160.0,96146.0,0.0639]
[1736325958377,0.1,96160.0,96157.0,0.05201]
[1736325958583,0.1,96160.0,96159.0,0.05201]
[1736325960082,0.102,96160.0,96159.0,0.05201]
[1736325960486,0.1619,96160.0,96146.0,0.0639]
[1736325960683,0.26583558,96160.0,96152.0,0.052013]
[1736325961279,0.3608,96153.0,96152.0,0.052013]
[1736325962189,0.3608,96153.0,96146.0,0.04215682]
[1736325962393,0.0626,96152.0,96140.0,0.05202]
[1736325962581,0.3608,96145.0,96140.0,0.05202]
[1736325963083,0.3608,96145.0,96136.0,0.04133512]
[1736325963284,0.3608,96145.0,96133.0,0.052024]
[1736325963988,0.3608,96136.0,96132.0,0.00156026]
[1736325964196,0.3608,96136.0,96135.0,0.51746875]
[1736325965887,0.3608,96136.0,96135.0,0.51946875]
[1736325966690,0.3608,96136.0,96135.0,0.51746875]
[1736325966895,0.3608,96136.0,96135.0,0.51946875]
[1736325969287,0.3608,96136.0,96135.0,0.46836]
[1736325969999,0.3608,96136.0,96115.0,0.00156051]
[1736325970000,0.052023,96135.0,96124.0,0.05180089]
[1736325970187,0.3608,96125.0,96115.0,0.00156051]
[1736325970386,0.3608,96125.0,96115.0,0.05359351]
[1736325971397,0.3608,96116.0,96115.0,0.05439141]
[1736325972793,0.3608,96116.0,96115.0,0.00156051]
[1736325977303,0.3608,96116.0,96113.0,0.05230005]
[1736325977604,0.3608,96116.0,96107.0,0.46628]
[1736325977900,0.3608,96108.0,96107.0,0.46628]
[1736325978897,0.3608,96108.0,96107.0,0.05254466]
[1736325979105,0.3608,96108.0,96095.0,0.052044]
[1736325980506,0.3608,96108.0,96098.0,0.03049459]
[1736325981504,0.3608,96108.0,96098.0,0.08353668]
[1736325987512,0.052039,96106.0,96098.0,0.08353668]
[1736325990807,0.052039,96106.0,96098.0,0.05604209]
[1736325991508,0.10821016,96124.0,96105.0,0.3608]
[1736325991710,0.052036,96111.0,96105.0,0.3608]
[1736325991909,0.052036,96111.0,96105.0,0.3108]
[1736325992711,0.20787116,96120.0,96105.0,0.3108]
[1736325993010,0.052036,96110.0,96105.0,0.3128]
[1736325994614,0.052037,96109.0,96105.0,0.3128]
[1736325994803,0.052038,96106.0,96105.0,0.3128]
[1736325997114,0.052038,96106.0,96105.0,0.3108]
[1736325997313,0.052038,96106.0,96105.0,0.3128]
[1736325997703,0.052038,96106.0,96105.0,0.2628]
[1736326006212,0.052038,96106.0,96105.0,0.002]
[1736326007628,0.0643,96107.0,96081.0,0.052052]
[1736326007921,0.052047,96091.0,96081.0,0.052052]
[1736326008315,0.052048,96089.0,96081.0,0.052052]
[1736326008510,0.052048,96089.0,96078.0,0.3608]
[1736326008715,0.052043,96098.0,96093.0,0.052045]
[1736326008912,0.0622,96105.0,96094.0,0.4873]
[1736326009135,0.0622,96105.0,96103.0,0.3608]
[1736326011826,0.0622,96105.0,96103.0,0.4140944]
[1736326012412,0.0622,96105.0,96103.0,0.4160944]
[1736326013933,0.052039,96104.0,96103.0,0.4160944]
[1736326018118,0.052036,96110.0,96103.0,0.4160944]
[1736326018428,0.052036,96110.0,96104.0,0.0665]
[1736326018631,0.3608,96116.0,96104.0,0.0665]
[1736326018830,0.052037,96109.0,96104.0,0.0665]
[1736326019422,0.052037,96108.0,96104.0,0.0665]
[1736326020222,0.052037,96108.0,96104.0,0.0685]
[1736326022932,0.052038,96107.0,96104.0,0.0685]
[1736326023634,0.1,96120.0,96104.0,0.0685]
[1736326023841,0.1,96120.0,96119.0,0.7216]
[1736326024427,0.11195513,96128.0,96125.0,0.052028]
[1736326024730,0.1,96140.0,96127.0,0.3608]
[1736326025039,0.15202,96140.0,96137.0,0.3608]
[1736326025625,0.052021,96139.0,96137.0,0.3608]
[1736326027536,0.054021,96139.0,96137.0,0.3608]
[1736326028823,0.054021,96139.0,96137.0,0.41316535]
[1736326030639,0.052022,96137.0,96128.0,0.052026]
[1736326031232,0.0661,96138.0,96128.0,0.0520363]
[1736326031233,0.052026,96129.0,96128.0,0.0520363]
[1736326031535,0.3608,96129.0,96110.0,0.00156074]
[1736326031738,0.052036,96111.0,96110.0,0.00156074]
[1736326032225,0.052036,96111.0,96100.0,0.3608]
[1736326032226,0.3608,96113.0,96100.0,0.3608]
[1736326032433,0.052041,96102.0,96100.0,0.3608]
[1736326033425,0.052041,96102.0,96100.0,0.3638]
[1736326033628,0.052041,96102.0,96100.0,0.003]
[1736326033829,0.4294,96101.0,96100.0,0.003]
[1736326034133,0.052045,96094.0,96093.0,0.05224969]
[1736326034435,0.052046,96092.0,96087.0,0.3608]
[1736326035236,0.052047,96090.0,96087.0,0.41174331]
[1736326035634,0.052048,96088.0,96087.0,0.41174331]
[1736326036440,0.052048,96088.0,96087.0,0.05094331]
[1736326036640,0.10393558,96097.0,96077.0,0.3608]
[1736326036836,0.05205,96086.0,96077.0,0.3608]
[1736326037936,0.05205,96086.0,96085.0,0.3608]
[1736326040441,0.05205,96086.0,96085.0,0.3638]
[1736326040641,0.05205,96086.0,96085.0,0.003]
[1736326044140,1.04905,96085.0,96080.0,0.05243776]
[1736326044342,0.052051,96084.0,96080.0,0.05243776]
[1736326045131,0.052051,96083.0,96080.0,0.05243776]
[1736326045532,0.052051,96083.0,96080.0,0.05543776]
[1736326048153,0.052051,96083.0,96080.0,0.05443776]
[1736326065177,0.99756001,96085.0,96080.0,0.05443776]
[1736326065373,0.052051,96082.0,96080.0,0.05443776]
[1736326067270,0.052051,96082.0,96080.0,0.05243776]